[Event "*** SCC Grand Prix: Titled Tuesday Blitz"]
[Site "Chess.com"]
[Date "2020.09.29"]
[Round "6"]
[White "Andreikka"]
[Black "DenisQ"]
[Result "1-0"]
[WhiteElo "2853"]
[BlackElo "2629"]
[TimeControl "180+1"]
[EndTime "11:04:28 PDT"]
[Termination "Andreikka won by resignation"]

1. c4 {[%clk 0:03:00.9]} 1... c6 {[%clk 0:02:58.9]} 2. Nf3 {[%clk 0:03:00.4]}
2... d5 {[%clk 0:02:59]} 3. d4 {[%clk 0:03:00.7]} 3... Nf6 {[%clk 0:02:58.5]} 4.
e3 {[%clk 0:02:59.5]} 4... Bf5 {[%clk 0:02:57.6]} 5. Nc3 {[%clk 0:02:59.4]} 5...
e6 {[%clk 0:02:57.4]} 6. Nh4 {[%clk 0:03:00]} 6... Be4 {[%clk 0:02:57.1]} 7. Qb3
{[%clk 0:02:59.9]} 7... Qc7 {[%clk 0:02:55.6]} 8. f3 {[%clk 0:03:00.4]} 8... Bg6
{[%clk 0:02:54.9]} 9. Bd2 {[%clk 0:03:00.9]} 9... Nbd7 {[%clk 0:02:54.4]} 10.
Nxg6 {[%clk 0:03:01.6]} 10... hxg6 {[%clk 0:02:53.5]} 11. O-O-O {[%clk 0:03:02]}
11... dxc4 {[%clk 0:02:43.8]} 12. Bxc4 {[%clk 0:03:01.5]} 12... b5 {[%clk
0:02:43.6]} 13. Be2 {[%clk 0:03:01.4]} 13... Rxh2 {[%clk 0:02:42.4]} 14. Rhg1
{[%clk 0:02:43.5]} 14... a6 {[%clk 0:02:31.2]} 15. Kb1 {[%clk 0:02:42.7]} 15...
c5 {[%clk 0:02:29.3]} 16. dxc5 {[%clk 0:02:42.7]} 16... Nxc5 {[%clk 0:02:27.7]}
17. Qc2 {[%clk 0:02:42.8]} 17... Rc8 {[%clk 0:02:25.6]} 18. Rc1 {[%clk
0:02:26.2]} 18... Be7 {[%clk 0:01:59.8]} 19. a3 {[%clk 0:02:06.9]} 19... Ncd7
{[%clk 0:01:41.1]} 20. Qd1 {[%clk 0:01:53.4]} 20... Qb8 {[%clk 0:01:38.1]} 21.
Na2 {[%clk 0:01:52.6]} 21... Rh5 {[%clk 0:01:32.6]} 22. g4 {[%clk 0:01:46.2]}
22... Rhc5 {[%clk 0:01:26.3]} 23. Rh1 {[%clk 0:01:43.2]} 23... Rxc1+ {[%clk
0:01:15.9]} 24. Nxc1 {[%clk 0:01:43.6]} 24... Qc7 {[%clk 0:01:01.6]} 25. Rh8+
{[%clk 0:01:41.2]} 25... Nf8 {[%clk 0:01:01.6]} 26. Nb3 {[%clk 0:01:37.5]} 26...
Nd5 {[%clk 0:00:57.1]} 27. Bd3 {[%clk 0:01:27]} 27... Rd8 {[%clk 0:00:52.6]} 28.
Qe2 {[%clk 0:01:27]} 28... Nb6 {[%clk 0:00:48.9]} 29. Ba5 {[%clk 0:01:22.6]}
29... Rc8 {[%clk 0:00:41.4]} 30. Ka2 {[%clk 0:01:11.2]} 30... Qb7 {[%clk
0:00:38.7]} 31. Bxb5+ {[%clk 0:01:00.7]} 31... axb5 {[%clk 0:00:38.7]} 32. Qxb5+
{[%clk 0:01:01.6]} 32... Rc6 {[%clk 0:00:33.1]} 33. Nd4 {[%clk 0:01:01.2]} 1-0

[Event "*** SCC Grand Prix: Titled Tuesday Blitz"]
[Site "Chess.com"]
[Date "2020.09.29"]
[Round "6"]
[White "ZverevLev"]
[Black "KyronGriffith"]
[Result "0-1"]
[WhiteElo "2358"]
[BlackElo "2520"]
[TimeControl "180+1"]
[EndTime "11:04:35 PDT"]
[Termination "KyronGriffith won by resignation"]

1. e4 {[%clk 0:03:00.9]} 1... c6 {[%clk 0:02:58.7]} 2. d4 {[%clk 0:02:59.9]}
2... d5 {[%clk 0:02:58.4]} 3. e5 {[%clk 0:03:00]} 3... Bf5 {[%clk 0:02:57.9]} 4.
Nd2 {[%clk 0:02:59.9]} 4... e6 {[%clk 0:02:57.7]} 5. Nb3 {[%clk 0:02:59.8]} 5...
a6 {[%clk 0:02:57.2]} 6. Nf3 {[%clk 0:02:57.3]} 6... c5 {[%clk 0:02:57.7]} 7.
Nxc5 {[%clk 0:02:51.7]} 7... Bxc5 {[%clk 0:02:58.6]} 8. dxc5 {[%clk 0:02:52.2]}
8... Qa5+ {[%clk 0:02:58.6]} 9. c3 {[%clk 0:02:51.6]} 9... Qxc5 {[%clk
0:02:59.2]} 10. Be3 {[%clk 0:02:51.5]} 10... Qc7 {[%clk 0:02:59.1]} 11. Be2
{[%clk 0:02:49]} 11... Nc6 {[%clk 0:02:59.5]} 12. O-O {[%clk 0:02:40.6]} 12...
Nge7 {[%clk 0:02:56.3]} 13. Bd4 {[%clk 0:02:31.6]} 13... O-O {[%clk 0:02:50.3]}
14. Re1 {[%clk 0:02:29.1]} 14... Bg4 {[%clk 0:02:47]} 15. h3 {[%clk 0:02:06.1]}
15... Bxf3 {[%clk 0:02:46]} 16. Bxf3 {[%clk 0:02:07]} 16... Nxd4 {[%clk
0:02:46.2]} 17. cxd4 {[%clk 0:02:04]} 17... Rac8 {[%clk 0:02:45.8]} 18. Qb3
{[%clk 0:02:01.7]} 18... b5 {[%clk 0:02:43.7]} 19. a4 {[%clk 0:01:57.6]} 19...
Qc4 {[%clk 0:02:41.9]} 20. Qd1 {[%clk 0:01:47.8]} 20... Nf5 {[%clk 0:02:37.8]}
21. axb5 {[%clk 0:01:41.8]} 21... axb5 {[%clk 0:02:38.7]} 22. Be2 {[%clk
0:01:35.6]} 22... Qxd4 {[%clk 0:02:36.9]} 23. Bxb5 {[%clk 0:01:33]} 23... Qxb2
{[%clk 0:02:32.3]} 24. Bd3 {[%clk 0:01:30.2]} 24... Ne7 {[%clk 0:01:59.9]} 25.
Ra7 {[%clk 0:01:16.6]} 25... Ng6 {[%clk 0:01:56.9]} 26. Qh5 {[%clk 0:01:09.4]}
26... Qd2 {[%clk 0:01:42]} 27. Rd1 {[%clk 0:01:05]} 27... Rc1 {[%clk 0:01:31.7]}
28. Rxc1 {[%clk 0:00:59.4]} 28... Qxc1+ {[%clk 0:01:32.6]} 29. Kh2 {[%clk
0:00:57.6]} 29... Qf4+ {[%clk 0:01:33]} 30. Kg1 {[%clk 0:00:56.8]} 30... Rc8
{[%clk 0:01:33.4]} 31. g3 {[%clk 0:00:54.3]} 31... Qd4 {[%clk 0:01:17.6]} 32.
Ra3 {[%clk 0:00:38.9]} 32... Nf8 {[%clk 0:00:59.1]} 33. Ra7 {[%clk 0:00:20.4]}
33... Qxa7 {[%clk 0:00:58.3]} 0-1

[Event "*** SCC Grand Prix: Titled Tuesday Blitz"]
[Site "Chess.com"]
[Date "2020.09.29"]
[Round "6"]
[White "markberk"]
[Black "bratkoo"]
[Result "1-0"]
[WhiteElo "2390"]
[BlackElo "2525"]
[TimeControl "180+1"]
[EndTime "11:04:37 PDT"]
[Termination "markberk won by checkmate"]

1. Nf3 {[%clk 0:03:00.9]} 1... e6 {[%clk 0:02:55.2]} 2. d4 {[%clk 0:02:58]} 2...
d5 {[%clk 0:02:56.1]} 3. e3 {[%clk 0:02:57.9]} 3... Nf6 {[%clk 0:02:55.7]} 4.
Bd3 {[%clk 0:02:57.4]} 4... c5 {[%clk 0:02:55.3]} 5. c3 {[%clk 0:02:57.2]} 5...
Nc6 {[%clk 0:02:56.2]} 6. O-O {[%clk 0:02:56.7]} 6... Bd6 {[%clk 0:02:57.1]} 7.
dxc5 {[%clk 0:02:56.6]} 7... Bxc5 {[%clk 0:02:55.9]} 8. b4 {[%clk 0:02:56.5]}
8... Be7 {[%clk 0:02:54.6]} 9. Nbd2 {[%clk 0:02:56.3]} 9... O-O {[%clk
0:02:54.5]} 10. b5 {[%clk 0:02:55.7]} 10... Na5 {[%clk 0:02:54.2]} 11. Bb2
{[%clk 0:02:54.9]} 11... Qc7 {[%clk 0:02:52]} 12. Rc1 {[%clk 0:02:36.5]} 12...
Rd8 {[%clk 0:02:45.3]} 13. Qe2 {[%clk 0:02:28]} 13... Bd7 {[%clk 0:02:40.5]} 14.
c4 {[%clk 0:02:27.3]} 14... dxc4 {[%clk 0:02:40.2]} 15. Nxc4 {[%clk 0:02:26.4]}
15... Nxc4 {[%clk 0:02:30.6]} 16. Bxc4 {[%clk 0:02:24.8]} 16... Qa5 {[%clk
0:02:29.3]} 17. Bc3 {[%clk 0:02:13.9]} 17... Qa4 {[%clk 0:02:29.4]} 18. Ne5
{[%clk 0:01:56.3]} 18... Be8 {[%clk 0:02:29.5]} 19. Qf3 {[%clk 0:01:44]} 19...
Nd5 {[%clk 0:02:21.7]} 20. Ba1 {[%clk 0:01:18.4]} 20... Bf6 {[%clk 0:02:17.5]}
21. Qg4 {[%clk 0:00:41.6]} 21... Bxb5 {[%clk 0:01:27.6]} 22. Qh5 {[%clk
0:00:38.1]} 22... g6 {[%clk 0:01:21.1]} 23. Qf3 {[%clk 0:00:32.6]} 23... Bxc4
{[%clk 0:01:13.7]} 24. Rxc4 {[%clk 0:00:28.1]} 24... Qxa2 {[%clk 0:01:01.6]} 25.
Rc7 {[%clk 0:00:27.9]} 25... Rf8 {[%clk 0:00:49]} 26. e4 {[%clk 0:00:22.7]}
26... Nxc7 {[%clk 0:00:45.8]} 27. Qxf6 {[%clk 0:00:21.2]} 27... Ne8 {[%clk
0:00:46.1]} 28. Qh8+ {[%clk 0:00:17.5]} 28... Kxh8 {[%clk 0:00:45.7]} 29. Nxf7+
{[%clk 0:00:17.2]} 29... Kg8 {[%clk 0:00:43.3]} 30. Nh6# {[%clk 0:00:17]} 1-0

[Event "*** SCC Grand Prix: Titled Tuesday Blitz"]
[Site "Chess.com"]
[Date "2020.09.29"]
[Round "6"]
[White "KyrgyzFighter"]
[Black "Zarinur"]
[Result "1-0"]
[WhiteElo "2374"]
[BlackElo "2195"]
[TimeControl "180+1"]
[EndTime "11:04:37 PDT"]
[Termination "KyrgyzFighter won by resignation"]

1. c4 {[%clk 0:03:00.9]} 1... e5 {[%clk 0:02:58.9]} 2. Nc3 {[%clk 0:03:00.7]}
2... Bb4 {[%clk 0:02:51.1]} 3. Nd5 {[%clk 0:02:59.8]} 3... Be7 {[%clk
0:02:50.1]} 4. g3 {[%clk 0:02:57]} 4... Nc6 {[%clk 0:02:44.6]} 5. Bg2 {[%clk
0:02:56.8]} 5... d6 {[%clk 0:02:42.3]} 6. d3 {[%clk 0:02:56.3]} 6... f5 {[%clk
0:02:41.2]} 7. e3 {[%clk 0:02:52.7]} 7... Nf6 {[%clk 0:02:40.1]} 8. Ne2 {[%clk
0:02:53.2]} 8... O-O {[%clk 0:02:38.5]} 9. O-O {[%clk 0:02:52.8]} 9... Be6
{[%clk 0:02:33.2]} 10. Nec3 {[%clk 0:02:46.5]} 10... Qd7 {[%clk 0:02:25.3]} 11.
f4 {[%clk 0:02:41.9]} 11... Rad8 {[%clk 0:02:10.8]} 12. e4 {[%clk 0:02:37.2]}
12... fxe4 {[%clk 0:02:00.5]} 13. dxe4 {[%clk 0:02:36.2]} 13... Bxd5 {[%clk
0:01:54.5]} 14. exd5 {[%clk 0:02:23.1]} 14... Nd4 {[%clk 0:01:48.4]} 15. b4
{[%clk 0:02:05.7]} 15... a5 {[%clk 0:01:34.3]} 16. a3 {[%clk 0:02:03.5]} 16...
Qg4 {[%clk 0:00:49.1]} 17. fxe5 {[%clk 0:01:33.5]} 17... dxe5 {[%clk 0:00:43.8]}
18. c5 {[%clk 0:01:33.5]} 18... Qxd1 {[%clk 0:00:38.7]} 19. Rxd1 {[%clk
0:01:30.7]} 19... axb4 {[%clk 0:00:31.7]} 20. axb4 {[%clk 0:01:29.9]} 20... b6
{[%clk 0:00:28.3]} 21. d6 {[%clk 0:01:19.5]} 21... cxd6 {[%clk 0:00:23.4]} 22.
cxb6 {[%clk 0:01:19.3]} 22... Rb8 {[%clk 0:00:17.5]} 23. b7 {[%clk 0:01:17.1]}
23... Kh8 {[%clk 0:00:13.7]} 24. Be3 {[%clk 0:01:16.2]} 24... Nc2 {[%clk
0:00:11.7]} 25. Ba7 {[%clk 0:01:13.8]} 25... Nxa1 {[%clk 0:00:09.7]} 26. Bxb8
{[%clk 0:01:13.9]} 26... Rxb8 {[%clk 0:00:07]} 27. Rxa1 {[%clk 0:01:14.2]} 27...
e4 {[%clk 0:00:05.1]} 28. Nxe4 {[%clk 0:01:13.7]} 28... Nxe4 {[%clk 0:00:04.3]}
29. Bxe4 {[%clk 0:01:14.3]} 29... Bd8 {[%clk 0:00:04.7]} 30. Ra8 {[%clk
0:01:13.3]} 30... Bc7 {[%clk 0:00:04.6]} 31. b5 {[%clk 0:01:13.9]} 31... Kg8
{[%clk 0:00:03.2]} 32. Kg2 {[%clk 0:01:14.2]} 32... Kf7 {[%clk 0:00:02.3]} 33.
b6 {[%clk 0:01:14.5]} 33... d5 {[%clk 0:00:02.5]} 34. Bxd5+ {[%clk 0:01:14.1]}
34... Ke7 {[%clk 0:00:02]} 35. bxc7 {[%clk 0:01:14.3]} 35... Rxa8 {[%clk
0:00:02.1]} 36. bxa8=Q {[%clk 0:01:15.2]} 1-0

[Event "*** SCC Grand Prix: Titled Tuesday Blitz"]
[Site "Chess.com"]
[Date "2020.09.29"]
[Round "6"]
[White "LiamVrolijk"]
[Black "sokidze"]
[Result "1-0"]
[WhiteElo "2843"]
[BlackElo "2622"]
[TimeControl "180+1"]
[EndTime "11:04:39 PDT"]
[Termination "LiamVrolijk won by checkmate"]

1. d4 {[%clk 0:03:00.9]} 1... Nf6 {[%clk 0:03:00]} 2. Bg5 {[%clk 0:03:01.2]}
2... e6 {[%clk 0:03:00]} 3. Nd2 {[%clk 0:03:00.4]} 3... h6 {[%clk 0:02:59.3]} 4.
Bh4 {[%clk 0:03:00.4]} 4... c5 {[%clk 0:02:59.8]} 5. e3 {[%clk 0:02:59.9]} 5...
d5 {[%clk 0:02:57.3]} 6. c3 {[%clk 0:02:59.6]} 6... Bd6 {[%clk 0:02:52.4]} 7.
Bd3 {[%clk 0:02:57.3]} 7... O-O {[%clk 0:02:50.3]} 8. f4 {[%clk 0:02:56.6]} 8...
cxd4 {[%clk 0:02:29.7]} 9. cxd4 {[%clk 0:02:56.4]} 9... Nc6 {[%clk 0:02:30]} 10.
Ngf3 {[%clk 0:02:56.3]} 10... Be7 {[%clk 0:02:29.5]} 11. a3 {[%clk 0:02:49.1]}
11... b6 {[%clk 0:02:24.6]} 12. Bxf6 {[%clk 0:02:49.1]} 12... Bxf6 {[%clk
0:02:23]} 13. h4 {[%clk 0:02:49.5]} 13... h5 {[%clk 0:01:44.4]} 14. g4 {[%clk
0:02:46]} 14... hxg4 {[%clk 0:01:37.8]} 15. Ng5 {[%clk 0:02:44.3]} 15... g6
{[%clk 0:01:17.1]} 16. Rc1 {[%clk 0:02:20.3]} 16... Ne7 {[%clk 0:01:12.7]} 17.
Nf1 {[%clk 0:01:56.4]} 17... Kg7 {[%clk 0:00:49.4]} 18. Ng3 {[%clk 0:01:49.2]}
18... Nf5 {[%clk 0:00:42]} 19. Kf2 {[%clk 0:01:48.9]} 19... Rh8 {[%clk
0:00:34.5]} 20. Qxg4 {[%clk 0:01:45.7]} 20... Bxg5 {[%clk 0:00:23.3]} 21. hxg5
{[%clk 0:01:41.4]} 21... Bd7 {[%clk 0:00:23.5]} 22. Rxh8 {[%clk 0:01:30.6]}
22... Qxh8 {[%clk 0:00:22.5]} 23. Rh1 {[%clk 0:01:08.9]} 23... Qg8 {[%clk
0:00:22.4]} 24. Qh3 {[%clk 0:00:55.8]} 24... Kf8 {[%clk 0:00:21.3]} 25. Bxf5
{[%clk 0:00:54.2]} 25... exf5 {[%clk 0:00:21.2]} 26. Rc1 {[%clk 0:00:54.6]}
26... Ke7 {[%clk 0:00:18.4]} 27. Qh1 {[%clk 0:00:52]} 27... Be6 {[%clk 0:00:11]}
28. Rc7+ {[%clk 0:00:51.5]} 28... Kd6 {[%clk 0:00:11.1]} 29. Qc1 {[%clk
0:00:51.7]} 29... Rc8 {[%clk 0:00:11.7]} 30. Qc6# {[%clk 0:00:51.4]} 1-0

[Event "*** SCC Grand Prix: Titled Tuesday Blitz"]
[Site "Chess.com"]
[Date "2020.09.29"]
[Round "6"]
[White "SilviusTiberius"]
[Black "Piotrek1979"]
[Result "1-0"]
[WhiteElo "2635"]
[BlackElo "2456"]
[TimeControl "180+1"]
[EndTime "11:04:39 PDT"]
[Termination "SilviusTiberius won by resignation"]

1. e4 {[%clk 0:03:00.9]} 1... c5 {[%clk 0:02:58.6]} 2. Nf3 {[%clk 0:03:01.3]}
2... Nc6 {[%clk 0:02:58.5]} 3. d4 {[%clk 0:03:01.8]} 3... cxd4 {[%clk
0:02:58.5]} 4. Nxd4 {[%clk 0:03:02.7]} 4... Nf6 {[%clk 0:02:58.5]} 5. Nc3 {[%clk
0:03:03]} 5... e5 {[%clk 0:02:59.1]} 6. Ndb5 {[%clk 0:03:02.6]} 6... d6 {[%clk
0:02:58.6]} 7. Nd5 {[%clk 0:03:03]} 7... Nxd5 {[%clk 0:02:57.2]} 8. exd5 {[%clk
0:03:03.9]} 8... Nb8 {[%clk 0:02:56.5]} 9. c4 {[%clk 0:03:03.6]} 9... Be7 {[%clk
0:02:52.4]} 10. Be2 {[%clk 0:02:56.7]} 10... O-O {[%clk 0:02:51.8]} 11. O-O
{[%clk 0:02:56.4]} 11... a6 {[%clk 0:02:31.5]} 12. Nc3 {[%clk 0:02:55.9]} 12...
Nd7 {[%clk 0:02:25.3]} 13. Be3 {[%clk 0:02:49.7]} 13... f5 {[%clk 0:02:22.1]}
14. f3 {[%clk 0:02:49.8]} 14... Bg5 {[%clk 0:02:15.4]} 15. Bf2 {[%clk
0:02:47.6]} 15... Qe7 {[%clk 0:02:04.7]} 16. b4 {[%clk 0:02:47]} 16... e4 {[%clk
0:02:03.9]} 17. fxe4 {[%clk 0:02:36.7]} 17... fxe4 {[%clk 0:02:03]} 18. Bd4
{[%clk 0:02:07.2]} 18... Rxf1+ {[%clk 0:01:17.7]} 19. Bxf1 {[%clk 0:02:08.1]}
19... Bf6 {[%clk 0:01:07.9]} 20. Qd2 {[%clk 0:02:00.7]} 20... a5 {[%clk
0:01:07.4]} 21. bxa5 {[%clk 0:01:46.9]} 21... Nc5 {[%clk 0:01:05.7]} 22. Re1
{[%clk 0:01:43]} 22... Bxd4+ {[%clk 0:01:02.8]} 23. Qxd4 {[%clk 0:01:42.9]}
23... Bf5 {[%clk 0:01:03.5]} 24. g3 {[%clk 0:01:23.8]} 24... Rxa5 {[%clk
0:00:53.9]} 25. Bg2 {[%clk 0:01:24]} 25... Nd3 {[%clk 0:00:23]} 26. Qxd3 {[%clk
0:01:15]} 26... exd3 {[%clk 0:00:21.7]} 27. Rxe7 {[%clk 0:01:15.9]} 27... Ra3
{[%clk 0:00:22]} 28. Nd1 {[%clk 0:01:12]} 28... Rxa2 {[%clk 0:00:21.9]} 29. Bf3
{[%clk 0:01:09.4]} 29... Rc2 {[%clk 0:00:20.7]} 30. Rxb7 {[%clk 0:01:04.4]}
30... Rxc4 {[%clk 0:00:20.3]} 31. Rb6 {[%clk 0:01:04.5]} 31... Bg4 {[%clk
0:00:18.3]} 32. Bxg4 {[%clk 0:01:02.8]} 32... Rxg4 {[%clk 0:00:19.2]} 33. Ne3
{[%clk 0:00:58]} 33... Re4 {[%clk 0:00:19.6]} 34. Kf2 {[%clk 0:00:57.8]} 34...
d2 {[%clk 0:00:19.8]} 35. Rb1 {[%clk 0:00:57.6]} 35... Rd4 {[%clk 0:00:17.7]}
36. Rd1 {[%clk 0:00:57.4]} 1-0

[Event "*** SCC Grand Prix: Titled Tuesday Blitz"]
[Site "Chess.com"]
[Date "2020.09.29"]
[Round "6"]
[White "denispopov"]
[Black "pedromartinez91"]
[Result "0-1"]
[WhiteElo "1979"]
[BlackElo "2454"]
[TimeControl "180+1"]
[EndTime "11:04:40 PDT"]
[Termination "pedromartinez91 won by checkmate"]

1. e4 {[%clk 0:03:00.9]} 1... c5 {[%clk 0:02:58.4]} 2. Nc3 {[%clk 0:03:00.6]}
2... Nc6 {[%clk 0:02:58.4]} 3. Bb5 {[%clk 0:03:00.9]} 3... Nh6 {[%clk
0:02:55.5]} 4. Bxc6 {[%clk 0:02:56.7]} 4... bxc6 {[%clk 0:02:53.5]} 5. d3 {[%clk
0:02:55.1]} 5... g6 {[%clk 0:02:53.4]} 6. Be3 {[%clk 0:02:51.9]} 6... d6 {[%clk
0:02:53]} 7. h3 {[%clk 0:02:51.1]} 7... f5 {[%clk 0:02:50.8]} 8. Qd2 {[%clk
0:02:49.4]} 8... Nf7 {[%clk 0:02:50.7]} 9. Nge2 {[%clk 0:02:47.8]} 9... Bg7
{[%clk 0:02:50.9]} 10. O-O {[%clk 0:02:38]} 10... Rb8 {[%clk 0:02:51.3]} 11. b3
{[%clk 0:02:36.6]} 11... e5 {[%clk 0:02:51.6]} 12. f4 {[%clk 0:02:34.3]} 12...
O-O {[%clk 0:02:50.4]} 13. fxe5 {[%clk 0:02:31.4]} 13... Nxe5 {[%clk 0:02:50.2]}
14. exf5 {[%clk 0:02:22.4]} 14... Bxf5 {[%clk 0:02:49.6]} 15. d4 {[%clk
0:02:20.3]} 15... cxd4 {[%clk 0:02:45.9]} 16. Nxd4 {[%clk 0:02:21.2]} 16... Bd7
{[%clk 0:02:46.3]} 17. Bh6 {[%clk 0:02:19.5]} 17... c5 {[%clk 0:02:38.5]} 18.
Bxg7 {[%clk 0:02:14.1]} 18... Kxg7 {[%clk 0:02:39.4]} 19. Nde2 {[%clk
0:02:11.9]} 19... Bc6 {[%clk 0:02:33.9]} 20. Nf4 {[%clk 0:02:09.4]} 20... Qd7
{[%clk 0:02:23]} 21. Ncd5 {[%clk 0:02:07.3]} 21... Rbe8 {[%clk 0:02:22.1]} 22.
Kh2 {[%clk 0:02:04.4]} 22... Qb7 {[%clk 0:02:13]} 23. Rae1 {[%clk 0:01:58.1]}
23... Bxd5 {[%clk 0:02:10.7]} 24. Nxd5 {[%clk 0:01:56.8]} 24... Rf7 {[%clk
0:02:01.1]} 25. Nf4 {[%clk 0:01:51.3]} 25... Rfe7 {[%clk 0:01:44.3]} 26. Nd3
{[%clk 0:01:38.9]} 26... Nxd3 {[%clk 0:01:40.6]} 27. Rxe7+ {[%clk 0:01:35.9]}
27... Qxe7 {[%clk 0:01:41.5]} 28. Qxd3 {[%clk 0:01:36.7]} 28... Qe5+ {[%clk
0:01:41.8]} 29. Qg3 {[%clk 0:01:30.9]} 29... Qxg3+ {[%clk 0:01:36.5]} 30. Kxg3
{[%clk 0:01:31.8]} 30... Re2 {[%clk 0:01:37]} 31. Rf2 {[%clk 0:01:31.7]} 31...
Re3+ {[%clk 0:01:36.1]} 32. Rf3 {[%clk 0:01:31.1]} 32... Re2 {[%clk 0:01:33.8]}
33. Rf2 {[%clk 0:01:31.1]} 33... Rxf2 {[%clk 0:01:34.2]} 34. Kxf2 {[%clk
0:01:32]} 34... Kf7 {[%clk 0:01:34.7]} 35. Ke3 {[%clk 0:01:32.3]} 35... Ke6
{[%clk 0:01:35.3]} 36. c3 {[%clk 0:01:26.7]} 36... Ke5 {[%clk 0:01:35.4]} 37. a3
{[%clk 0:01:24.6]} 37... d5 {[%clk 0:01:35.7]} 38. Kd3 {[%clk 0:01:18.9]} 38...
h5 {[%clk 0:01:29]} 39. b4 {[%clk 0:01:17.5]} 39... Kd6 {[%clk 0:01:24.9]} 40.
a4 {[%clk 0:01:16]} 40... h4 {[%clk 0:01:19.9]} 41. Ke3 {[%clk 0:01:13]} 41...
d4+ {[%clk 0:01:13]} 42. Kd3 {[%clk 0:01:08.3]} 42... cxb4 {[%clk 0:01:12.6]}
43. cxb4 {[%clk 0:01:05.9]} 43... Kd5 {[%clk 0:01:09.1]} 44. a5 {[%clk
0:01:03.4]} 44... a6 {[%clk 0:01:09.3]} 45. b5 {[%clk 0:00:55.4]} 45... axb5
{[%clk 0:01:09.4]} 46. a6 {[%clk 0:00:55.6]} 46... Kc6 {[%clk 0:01:10]} 47. Kxd4
{[%clk 0:00:56.1]} 47... Kb6 {[%clk 0:01:10.3]} 48. a7 {[%clk 0:00:53.2]} 48...
Kxa7 {[%clk 0:01:10.4]} 49. Kc5 {[%clk 0:00:54.1]} 49... Ka6 {[%clk 0:01:10.9]}
50. Kb4 {[%clk 0:00:54.5]} 50... Kb6 {[%clk 0:01:11.4]} 51. Kb3 {[%clk
0:00:55.4]} 51... Kc5 {[%clk 0:01:11.8]} 52. Kc3 {[%clk 0:00:56.2]} 52... Kd5
{[%clk 0:01:12.1]} 53. Kc2 {[%clk 0:00:57.1]} 53... Ke4 {[%clk 0:01:12.6]} 54.
Kb2 {[%clk 0:00:58]} 54... Ke3 {[%clk 0:01:13]} 55. Kb3 {[%clk 0:00:58.9]} 55...
Kf2 {[%clk 0:01:13.7]} 56. Kb4 {[%clk 0:00:59.3]} 56... Kxg2 {[%clk 0:01:14.3]}
57. Kxb5 {[%clk 0:01:00.2]} 57... Kxh3 {[%clk 0:01:14.9]} 58. Kc5 {[%clk
0:01:01.1]} 58... Kg2 {[%clk 0:01:15.8]} 59. Kd5 {[%clk 0:01:02]} 59... h3
{[%clk 0:01:16.6]} 60. Ke6 {[%clk 0:01:02.9]} 60... h2 {[%clk 0:01:17.5]} 61.
Kf6 {[%clk 0:01:03.8]} 61... h1=Q {[%clk 0:01:18.1]} 62. Kxg6 {[%clk 0:01:04.7]}
62... Qh3 {[%clk 0:01:18.5]} 63. Kf6 {[%clk 0:01:05.6]} 63... Qe3 {[%clk
0:01:18.1]} 64. Kg6 {[%clk 0:01:05.6]} 64... Qe5 {[%clk 0:01:17.8]} 65. Kh7
{[%clk 0:01:05.7]} 65... Qf6 {[%clk 0:01:17.3]} 66. Kg8 {[%clk 0:01:06.5]} 66...
Qe7 {[%clk 0:01:17.8]} 67. Kh8 {[%clk 0:01:06.7]} 67... Kg3 {[%clk 0:01:18.7]}
68. Kg8 {[%clk 0:01:07.6]} 68... Kg4 {[%clk 0:01:19.6]} 69. Kh8 {[%clk
0:01:08.5]} 69... Kg5 {[%clk 0:01:20.5]} 70. Kg8 {[%clk 0:01:09.4]} 70... Kg6
{[%clk 0:01:21.4]} 71. Kh8 {[%clk 0:01:10.3]} 71... Qg7# {[%clk 0:01:21.6]} 0-1

[Event "*** SCC Grand Prix: Titled Tuesday Blitz"]
[Site "Chess.com"]
[Date "2020.09.29"]
[Round "6"]
[White "AsaHoffmann"]
[Black "leoduarte"]
[Result "1-0"]
[WhiteElo "2406"]
[BlackElo "2301"]
[TimeControl "180+1"]
[EndTime "11:04:40 PDT"]
[Termination "AsaHoffmann won on time"]

1. d4 {[%clk 0:02:55.4]} 1... Nf6 {[%clk 0:02:59.2]} 2. Bg5 {[%clk 0:02:54.4]}
2... Ne4 {[%clk 0:02:55.8]} 3. Bf4 {[%clk 0:02:53.9]} 3... g6 {[%clk 0:02:55.4]}
4. f3 {[%clk 0:02:53]} 4... Nf6 {[%clk 0:02:55.4]} 5. e4 {[%clk 0:02:52.9]} 5...
Bg7 {[%clk 0:02:55.8]} 6. Qd2 {[%clk 0:02:52.7]} 6... d6 {[%clk 0:02:52.4]} 7.
Nc3 {[%clk 0:02:52.2]} 7... Nfd7 {[%clk 0:02:39.5]} 8. Bh6 {[%clk 0:02:44.7]}
8... Bxh6 {[%clk 0:02:29.4]} 9. Qxh6 {[%clk 0:02:43.5]} 9... e5 {[%clk
0:02:22.6]} 10. Nge2 {[%clk 0:02:37.5]} 10... c6 {[%clk 0:02:17.7]} 11. O-O-O
{[%clk 0:02:36.2]} 11... Qf6 {[%clk 0:02:15.6]} 12. h4 {[%clk 0:02:32.1]} 12...
Na6 {[%clk 0:01:55.1]} 13. h5 {[%clk 0:02:27.1]} 13... g5 {[%clk 0:01:48.2]} 14.
Qxf6 {[%clk 0:02:24.5]} 14... Nxf6 {[%clk 0:01:49.1]} 15. g4 {[%clk 0:02:18.8]}
15... h6 {[%clk 0:01:45]} 16. Ng3 {[%clk 0:02:17.4]} 16... Nc7 {[%clk
0:01:42.6]} 17. dxe5 {[%clk 0:02:14.8]} 17... dxe5 {[%clk 0:01:41.7]} 18. Bc4
{[%clk 0:02:13.6]} 18... Ke7 {[%clk 0:01:33.7]} 19. Nf5+ {[%clk 0:02:07.6]}
19... Bxf5 {[%clk 0:01:33]} 20. exf5 {[%clk 0:02:07.5]} 20... Nd7 {[%clk
0:00:59.7]} 21. Bxf7 {[%clk 0:02:03.1]} 21... Rhd8 {[%clk 0:00:54.4]} 22. Bb3
{[%clk 0:01:55.2]} 22... Nb6 {[%clk 0:00:54.3]} 23. Rde1 {[%clk 0:01:52.3]}
23... Kf6 {[%clk 0:00:53.8]} 24. Ne4+ {[%clk 0:01:51.7]} 24... Kg7 {[%clk
0:00:53.3]} 25. Nc5 {[%clk 0:01:50.4]} 25... Kf6 {[%clk 0:00:33.1]} 26. Nxb7
{[%clk 0:01:45.2]} 26... Rd4 {[%clk 0:00:33.1]} 27. Nc5 {[%clk 0:01:44.3]} 27...
Rf4 {[%clk 0:00:30.3]} 28. Ne4+ {[%clk 0:01:40.9]} 28... Kg7 {[%clk 0:00:30.1]}
29. Rhf1 {[%clk 0:01:25.8]} 29... Ncd5 {[%clk 0:00:29.7]} 30. a3 {[%clk
0:01:18.9]} 30... Nf6 {[%clk 0:00:26.7]} 31. Nc5 {[%clk 0:01:14.8]} 31... Nfd5
{[%clk 0:00:08.1]} 32. Ne6+ {[%clk 0:01:08.2]} 32... Kf6 {[%clk 0:00:09]} 33.
Nxf4 {[%clk 0:01:07.7]} 33... Kg7 {[%clk 0:00:09.9]} 34. Nxd5 {[%clk 0:01:05.7]}
1-0